Cogmind - Beta 10.2 --- EXPLORER MODE // 2021.02.25 @ 00:06:04 // Winter2019/RPGLIKE Player: TeaParrot Result: Self-destructed Performance ------------- Evolutions (1) 500 Regions Visited (5) 1000 Robots Destroyed (10) 50 Value Destroyed (246) 246 Prototype IDs (23) 460 Alien Tech Used (0) 0 Bonus (300) 300 TOTAL SCORE: 2556 Bonus ------- Aligned with FarCom 300 Cogmind --------- Core Integrity 475/600 Matter 203/300 Energy 125/125 System Corruption 0% Temperature Cool (0) Movement Walking (120) Location -9/Exiles Parts ------- > --- POWER (1) -------- Light Ion Engine > --- PROPULSION (1) --- Aluminum Leg > --- UTILITY (1) ------ ECM Suite > --- WEAPON (1) ------- Grenade Launcher > --- INVENTORY (2) ---- Hover Unit Hover Unit Peak State ------------ > --- POWER ------------ Light Ion Engine > --- PROPULSION ------- Aluminum Leg > --- UTILITY ---------- ECM Suite > --- WEAPON ----------- Assault Rifle > --- INVENTORY -------- (None) [Rating: 4] Favorites ----------- Power Light Ion Engine Engine Light Ion Engine Propulsion Aluminum Leg Leg Aluminum Leg Utility ECM Suite Device ECM Suite Weapon Grenade Launcher Ballistic Gun Assault Rifle Launcher Grenade Launcher Build | -11 -10 -10 -9 -9 -9 ------- Run | Scr Mat Min Mat Min Exi Slots Evolved . | . . . . . . Power . | . . . . . . Propulsion . | . . . . . . Utility . | . . . . . . Weapon . | . . . . . . Parts Attached 5 | 4 1 . . . . Power 1 | 1 . . . . . Engine 1 | 1 . . . . . Core . | . . . . . . Reactor . | . . . . . . Propulsion 1 | 1 . . . . . Treads . | . . . . . . Leg 1 | 1 . . . . . Wheel . | . . . . . . Hover . | . . . . . . Flight . | . . . . . . Utility 1 | 1 . . . . . Device 1 | 1 . . . . . Storage . | . . . . . . Processor . | . . . . . . Hackware . | . . . . . . Protection . | . . . . . . Artifact . | . . . . . . Weapon 2 | 1 1 . . . . Energy Gun . | . . . . . . Energy Cannon . | . . . . . . Ballistic Gun 1 | 1 . . . . . Ballistic Cannon . | . . . . . . Launcher 1 | . 1 . . . . Special Weapon . | . . . . . . Impact Weapon . | . . . . . . Slashing Weapon . | . . . . . . Piercing Weapon . | . . . . . . Special Melee Weapon . | . . . . . . Unidentified Prototypes . | . . . . . . Parts Lost . | . . . . . . Power . | . . . . . . Propulsion . | . . . . . . Utility . | . . . . . . Weapon . | . . . . . . Highest Loss Streak . | . . . . . . Average Slot Usage (%) 100 | . 100 100 100 100 100 Engine 25 | . 25 25 25 25 25 Leg 25 | . 25 25 25 25 25 Device 25 | . 25 25 25 25 25 Launcher 25 | . 25 25 25 25 25 Naked Turns . | . . . . . . Heaviest Build 7 | 6 7 7 7 7 7 Greatest Support 10 | 10 10 10 10 10 10 Greatest Overweight (x) 1 | 1 . . . . . Average Overweight (x) . | . . . . . . Largest Inventory Capacity 2 | . . . 2 2 2 Average Capacity . | . . . 1 2 2 Most Carried 2 | . . . 2 2 2 Average Carried . | . . . 1 2 2 Final Capacity 2 | . . . 2 2 2 Final Carried 2 | . . . 2 2 2 Class Distribution -------------------- 100% | Hacker-Mutant Dominant Class ---------------- Hacker-Mutant | -10/Materials Hacker-Mutant | -10/Mines Hacker-Mutant | -9/Materials Hacker-Mutant | -9/Mines Hacker-Mutant | -9/Exiles Resources | -11 -10 -10 -9 -9 -9 ----------- Run | Scr Mat Min Mat Min Exi Matter Collected 323 | 209 51 20 43 . . Remotely . | . . . . . . Salvage Created 184 | . . 42 142 . . Parts 16 | . . 2 14 . . Haulers Intercepted . | . . . . . . Recyclers Shooed 1 | . . . 1 . . Parts Field Recycled . | . . . . . . Retrieved Matter . | . . . . . . Parts Self-Destructed . | . . . . . . Prevented . | . . . . . . Kills | -11 -10 -10 -9 -9 -9 ------- Run | Scr Mat Min Mat Min Exi Combat Hostiles Destroyed 7 | . . 2 5 . . AOE 7 | . . 2 5 . . Classes Destroyed 5 | . . 1 4 . . Builder 1 | . . . 1 . . Recycler 1 | . . . 1 . . Operator 1 | . . . 1 . . Swarmer 3 | . . . 3 . . Grunt 4 | . . 2 2 . . Best Kill Streak 4 | . . 2 4 . . Combat Bots Only 3 | . . 2 3 . . Max Kills in Single Turn 2 | . . 1 2 . . Gunslinging . | . . . . . . Exploded 2 | . . 1 2 . . Melee . | . . . . . . Uniques/NPCs Destroyed . | . . . . . . Combat | -11 -10 -10 -9 -9 -9 -------- Run | Scr Mat Min Mat Min Exi Damage Taken 161 | . . 68 93 . . Core 125 | . . 53 72 . . Absorbed by Shields . | . . . . . . Redirected to Core 107 | . . 42 65 . . Core Remaining (%) 95 | 100 . 91 . . . Volleys Fired 17 | . 1 6 10 . . Largest 1 | . 1 1 1 . . Hottest 30 | . 30 30 30 . . Shots Fired 17 | . 1 6 10 . . Gun . | . . . . . . Cannon . | . . . . . . Launcher 17 | . 1 6 10 . . Special . | . . . . . . Kinetic . | . . . . . . Thermal . | . . . . . . Explosive 17 | . 1 6 10 . . Electromagnetic . | . . . . . . Robot Hit Streak 5 | . . 1 5 . . Robot Miss Streak 1 | . . 1 1 . . Penetration Max . | . . . . . . Secondary Targets . | . . . . . . Shots Hit Robots 9 | . . 3 6 . . Core Hits 21 | . 1 8 12 . . Critical Hits . | . . . . . . Critical Kills . | . . . . . . Critical Parts Destroyed . | . . . . . . Melee Attacks . | . . . . . . Impact . | . . . . . . Slashing . | . . . . . . Piercing . | . . . . . . Sneak Attacks . | . . . . . . Combat Hostiles . | . . . . . . Follow-up Attacks . | . . . . . . Damage Inflicted 702 | . 27 191 484 . . Guns . | . . . . . . Cannons . | . . . . . . Explosions 702 | . 27 191 484 . . Melee . | . . . . . . Ramming . | . . . . . . Kinetic . | . . . . . . Thermal . | . . . . . . Explosive 702 | . 27 191 484 . . Electromagnetic . | . . . . . . Impact . | . . . . . . Slashing . | . . . . . . Piercing . | . . . . . . Highest Corruption . | . . . . . . Average Corruption . | . . . . . . Corruption Purged . | . . . . . . Overload Shots . | . . . . . . Overflow Damage 13 | . . . 13 . . Projectiles . | . . . . . . Explosions 13 | . . . 13 . . Melee . | . . . . . . Knockbacks . | . . . . . . Impact . | . . . . . . Kinetic . | . . . . . . Secondary . | . . . . . . Self-Inflicted Damage 87 | . 1 15 71 . . Shots 6 | . 1 1 4 . . Rammed . | . . . . . . Targets Rammed . | . . . . . . Kicked . | . . . . . . Crushed . | . . . . . . Highest Temperature 10 | . . 10 1 . . Average Temperature 5 | . . 5 1 . . Received Heat Transfer 57 | . . 51 6 . . Siege Activations . | . . . . . . Robots Corrupted . | . . . . . . Combat Hostiles . | . . . . . . Parts Fried . | . . . . . . Impact Corruptions . | . . . . . . Robots Melted . | . . . . . . Combat Hostiles . | . . . . . . Parts Melted . | . . . . . . Heat Transferred . | . . . . . . Parts Sabotaged . | . . . . . . Parts Stolen . | . . . . . . Parts Stripped . | . . . . . . Power Chain Reactions . | . . . . . . Missiles Intercepted . | . . . . . . Alert | -11 -10 -10 -9 -9 -9 ------- Run | Scr Mat Min Mat Min Exi Peak Influence 199 | . 12 58 199 54 . Initial 54 | . . 3 15 54 . Average 25 | . 9 7 84 54 . Maximum Alert Level . | . . . . . . Low Security (%) 100 | 100 100 100 100 100 . Level 1 . | . . . . . . Level 2 . | . . . . . . Level 3 . | . . . . . . Level 4 . | . . . . . . Level 5 . | . . . . . . High Security . | . . . . . . Max Security . | . . . . . . Squads Dispatched 1 | . . . 1 . . Investigation . | . . . . . . Extermination . | . . . . . . Reinforcement 1 | . . . 1 . . Assault . | . . . . . . Garrison . | . . . . . . Intercept . | . . . . . . Construction Impeded . | . . . . . . Haulers Reinforced . | . . . . . . Stealth | -11 -10 -10 -9 -9 -9 --------- Run | Scr Mat Min Mat Min Exi Distress Signals 1 | . . . 1 . . Communications Jammed . | . . . . . . Distress Signals . | . . . . . . Times Spotted 11 | . . 2 9 . . Peak Tracking Total 4 | . . 2 4 . . Tactical Retreats . | . . . . . . Traps | -11 -10 -10 -9 -9 -9 ------- Run | Scr Mat Min Mat Min Exi Traps Triggered . | . . . . . . Indirectly . | . . . . . . Trap Hack Attempts . | . . . . . . Triggered . | . . . . . . Disarmed . | . . . . . . Reprogrammed . | . . . . . . Reused . | . . . . . . Traps Extracted . | . . . . . . Installed . | . . . . . . Triggered . | . . . . . . Machines | -11 -10 -10 -9 -9 -9 ---------- Run | Scr Mat Min Mat Min Exi Machines Disabled 4 | . . 2 2 . . Max in Single Turn 2 | . . 2 2 . . Machines Sabotaged . | . . . . . . Garrisons Compromised . | . . . . . . Overloaded Fab Kills . | . . . . . . Fab Network Shutdowns . | . . . . . . Hacking | -11 -10 -10 -9 -9 -9 --------- Run | Scr Mat Min Mat Min Exi Machines Accessed 4 | . 2 . 1 . 1 Terminals 3 | . 2 . 1 . . Fabricators . | . . . . . . Repair Stations . | . . . . . . Recycling Units . | . . . . . . Scanalyzers . | . . . . . . Garrison Access . | . . . . . . Total Hacks 7 | . 5 . 1 . 1 Successful 3 | . 1 . 1 . 1 Failed 4 | . 4 . . . . Catastrophic . | . . . . . . Database Lockouts . | . . . . . . Manual 6 | . 4 . 1 . 1 Terminals 6 | . 5 . 1 . . Fabricators . | . . . . . . Repair Stations . | . . . . . . Recycling Units . | . . . . . . Scanalyzers . | . . . . . . Garrison Access . | . . . . . . Terminal Hacks 3 | . 1 . 1 . 1 Branch Access Points 2 | . 1 . 1 . . EX-Prototype ID Bank 1 | . . . . . 1 Fabricator Hacks . | . . . . . . Repair Station Hacks . | . . . . . . Recycling Unit Hacks . | . . . . . . Scanalyzer . | . . . . . . Garrison Access Hacks . | . . . . . . Unauthorized Hacks . | . . . . . . Terminals . | . . . . . . Fabricators . | . . . . . . Repair Stations . | . . . . . . Recycling Units . | . . . . . . Scanalyzers . | . . . . . . Garrison Access . | . . . . . . Data Cores Recovered . | . . . . . . Used . | . . . . . . Hacking Detections 2 | . 2 . . . . Full Trace Events . | . . . . . . Feedback Events . | . . . . . . Feedback Blocked . | . . . . . . Robot Schematics Acquired . | . . . . . . Robots Built . | . . . . . . Matter . | . . . . . . Time . | . . . . . . Total Robot Build Rating . | . . . . . . Part Schematics Acquired . | . . . . . . Parts Built . | . . . . . . Matter . | . . . . . . Time . | . . . . . . Total Part Build Rating . | . . . . . . Parts Repaired . | . . . . . . Time . | . . . . . . Parts Recycled . | . . . . . . Recycled Matter . | . . . . . . Retrieved Matter . | . . . . . . Retrieved Components . | . . . . . . Parts Scanalyzed . | . . . . . . Part Schematics Acquired . | . . . . . . Parts Damaged . | . . . . . . Bothacking | -11 -10 -10 -9 -9 -9 ------------ Run | Scr Mat Min Mat Min Exi Used RIF Installer . | . . . . . . Robots Hacked . | . . . . . . Non-combat . | . . . . . . Combat . | . . . . . . Robot Hacks Applied . | . . . . . . Relay Couplers Released . | . . . . . . Robots Rewired . | . . . . . . Allies Hacked . | . . . . . . Hacks Repelled . | . . . . . . Allies | -11 -10 -10 -9 -9 -9 -------- Run | Scr Mat Min Mat Min Exi Total Allies 2 | . . . . 2 . Largest Group 2 | . . . . 2 2 Highest-Rated Group 45 | . . . . 45 45 Highest-Rated Ally 31 | . . . . 31 31 Total Orders . | . . . . . . Ally Attacks . | . . . . . . Total Damage . | . . . . . . Kills . | . . . . . . Allies Corrupted . | . . . . . . Allies Melted . | . . . . . . Intel | -11 -10 -10 -9 -9 -9 ------- Run | Scr Mat Min Mat Min Exi Robot Analysis Total . | . . . . . . Derelict Logs Recovered 1 | . . 1 . . . Drone Launches . | . . . . . . Drone Recoveries . | . . . . . . Exploration | -11 -10 -10 -9 -9 -9 ------------- Run | Scr Mat Min Mat Min Exi Turns Passed 1064 | 40 122 515 158 93 136 Spaces Moved 785 | 32 99 388 91 62 113 Core 7 | 7 . . . . . Treads . | . . . . . . Legs 778 | 25 99 388 91 62 113 Wheels . | . . . . . . Hover . | . . . . . . Flight . | . . . . . . Fastest Speed 50 | 50 120 120 120 120 120 Average Speed 119 | 107 120 120 120 120 120 Slowest Speed 120 | 120 120 120 120 120 120 Overloaded Moves . | . . . . . . Propulsion Burnouts . | . . . . . . Robots Hopped . | . . . . . . Cave-ins Triggered . | . . . . . . Exploration Rate (%) 26 | 3 12 74 16 16 40 Regions Visited 5 Branch Regions 3 Pre-discovered Areas . | . . . . . . Known Exits Taken 5 | 1 1 1 1 1 . Unknown Exits Taken . | . . . . . . Scrap Searched . | . . . . . . Spaces Dug . | . . . . . . Terrain Destroyed 80 | . 7 19 54 . . Melee . | . . . . . . Projectile . | . . . . . . AOE 80 | . 7 19 54 . . Terrain Rammed . | . . . . . . Walls Destroyed . | . . . . . . Machines Disabled . | . . . . . . Actions | -11 -10 -10 -9 -9 -9 --------- Run | Scr Mat Min Mat Min Exi Total 890 | 35 101 431 130 80 113 Wait 85 | . . 38 28 19 . Move 780 | 31 98 387 90 61 113 Hop . | . . . . . . Pick Up 2 | . . . 2 . . Fast Attach 5 | 4 1 . . . . Attach . | . . . . . . Detach . | . . . . . . Swap . | . . . . . . Drop 1 | . 1 . . . . Fire 17 | . 1 6 10 . . Melee . | . . . . . . Ram . | . . . . . . Kick . | . . . . . . Crush . | . . . . . . Escape Stasis . | . . . . . . Rewire . | . . . . . . Trap . | . . . . . . Miscellaneous . | . . . . . . Route ------- -11/Scrapyard -10/Materials (discovered 2 exits: *Min x2) -10/Mines (discovered 2 exits: *Mat x2) -9/Materials (discovered 3 exits: *Min x2 / Sto) -9/Mines -9/Exiles History --------- Turn | Location | Event 5 | -11/Scrapyard | Identified exit to Materials 5 | -11/Scrapyard | Discovered exit to Materials (range 16) 41 | -11/Scrapyard | Entered Materials 66 | -10/Materials | Identified exit to Mines 163 | -10/Materials | Entered Mines 310 | -10/Mines | Identified exit to Materials 310 | -10/Mines | Discovered exit to Materials (range 14) 316 | -10/Mines | Build established: Hacker-Mutant 601 | -10/Mines | Discovered exit to Materials (range 9) 623 | -10/Mines | Learned Materials emergency access door positions 678 | -10/Mines | Entered Materials 680 | -9/Materials | Reached level 2 680 | -9/Materials | Reached level 3 799 | -9/Materials | Identified exit to Mines 799 | -9/Materials | Identified exit to Storage 820 | -9/Materials | Reached level 4 836 | -9/Materials | Entered Mines 907 | -9/Mines | Deemed a non-threat by the Exiles lab entrance 907 | -9/Mines | Identified exit to Exiles 907 | -9/Mines | Discovered exit to Exiles (range 5) 929 | -9/Mines | Entered Exiles 929 | -9/Exiles | Accompanied by 2 allies 959 | -9/Exiles | Led the pair of lost Derelicts to a safe place 959 | -9/Exiles | Met 8R-AWN 980 | -9/Exiles | Met EX-HEX 1016 | -9/Exiles | Met EX-BIN 1030 | -9/Exiles | Aligned with FarCom system 1031 | -9/Exiles | Given EX-Vault access code 1060 | -9/Exiles | Opened EX-Vault 1065 | -9/Exiles | Self-destructed Last Messages --------------- Modified TNC 0b10 Alert Chip Cloak of Protection Skeleton Box Trap Reconfigurator Supersonic Drone Bay Army-in-a-Box PSU Rigger Chronowheel AWS/Thermal Latent Energy Streamer Gui. Plasma Cannon Firepult YOLO Cannon AWS/Gauss XL Autogun Array AWS/Autocannon Field Lobotomy Kit Longsword +1 Deploy-a-Sentry Map ----- +----------------------------------------------------+ | | | | | | | | | | | | | | | | | | | | | | | | | | | | | | | | | | | | | | | | | | | ???????????????????#########?????????????????????? | | ???????????????????# ] #?????????????????????? | | ???????????????????#== ] #?????????????????????? | | ???????????????????# #?????????????????????? | | ???????????????????# @X#?????????????????????? | | ???????????????????## ##?????????????????????? | | ???????????????????#X #??????????????????????? | | ???????????????????## #??????????????????????? | | ????????????????????# #??????????????????????? | | ????????????????????# #???###????????????????? | | ????????????????????# #??"""""???????????????? | | ????????????????????# ## """???????????????? | | ????????????????????# X""???????????????? | | ????????????????????# ## """???????????????? | | ??????????????####??# #??"""""???????????????? | | ?????????????""""""?# #???#??????????????????? | | ?????????????"""" ## #??????????????????????? | | ????????????#""X" #??????????????????????? | | ????????????#" #??????????????????????? | | ????????????#" ## #??????????????????????? | | ????????????#""""""?# #?#########????????????? | | ????????????##"###??# #?#"""""""#????????????? | | ????????????????????# #?#"""""""#????????????? | | ????????????????????# #?#"""""""#????????????? | | ???????????????????## ###"" """"#????????????? | | ???????????????????#" """"#????????????? | | ???????????????????#" """#????????????? | | ???????????????????#" """#????????????? | | ???????????????????#" """#????????????? | +----------------------------------------------------+ Best States ------------- Heat Dissipation 25 Energy Generation 10 Energy Capacity 125 Matter Stores 300 Matter Capacity 300 Sight Range 16 Terrain Scan Density 10 ECM Strength 1 Resistance: KI 35 Resistance: TH 35 Resistance: EX 35 Resistance: EM 35 Resistance: I 35 Resistance: S 35 Resistance: P 35 Evasion (%) 40 Offensive Hacking 20 Item Schematics ----------------- None Robot Schematics ------------------ None Fabricated ------------ Nothing Alien Tech Used ----------------- None Achievements -------------- None Challenges ------------ None RPGLIKE | -11 -10 -10 -9 -9 -9 --------- Run | Scr Mat Min Mat Min Exi Levels Raised 3 | . . . 3 . . XP Earned 11627 | 6000 60 750 3967 500 350 XP Spent 750 | . . . 750 . . Upgrades 2 | . . . 2 . . Inventory Capacity 2 | . . . 2 . . Protomatter Created 13 | . . . 13 . . Protomatter Decayed . | . . . . . . Game ------ Seed GravmagMediumAutohacker Manual? 0 Play Time 00:10:07 Cumulative 64.0 hours Start 2021.02.24 @ 23:52:48 End 2021.02.25 @ 00:06:04 Sessions 1 Manual Loads 0 Difficulty Explorer Special Mode Winter2019/RPGLIKE Game No. 29 Rogue 0 Adventurer 5 Explorer 24 Win Type - Total 9 Types 5/1/0/1/1/0/0/1/0 Lore% 68 Gallery% 64 Achievement% 65 Wizard Run 0 Options --------- ASCII 0 Keyboard 0 Movement Mouse Keybinds 0 Fullscreen 0 Font 14/Terminus Map View 76x50 Tactical HUD 1 Map Filters NONE Filters NONE Steam 1 RUN: fc0ef201-f3a8-47ca-9a6c-9ac345c31361